[Event "Titled Tuesday Blitz November 01 Early 2022"]
[White "Manukian, Artak"]
[Black "Jakubowski, Krzysztof"]
[WhiteFideId "13301373"]
[BlackFideId "1112848"]
[WhiteElo "2478"]
[BlackElo "2373"]
[Result "1-0"]
[Round "09"]
[TimeControl "180+1"]
[Date "2022.11.02"]
[WhiteClock "0:00:25"]
[BlackClock "0:00:05"]

1. e4 {[%clk 0:03:00]}  c5 {[%clk 0:02:58]} 2. Nf3 {[%clk 0:03:00]}  e6 {[%clk 0:02:58]} 3. c3 {[%clk 0:03:00]}  Nf6 {[%clk 0:02:57]} 4. e5 {[%clk 0:03:00]}  Nd5 {[%clk 0:02:57]} 5. d4 {[%clk 0:03:00]}  cxd4 {[%clk 0:02:56]} 6. cxd4 {[%clk 0:03:01]}  b6 {[%clk 0:02:55]} 7. Nc3 {[%clk 0:03:01]}  Bb7 {[%clk 0:02:54]} 8. Bd3 {[%clk 0:03:00]}  Nxc3 {[%clk 0:02:52]} 9. bxc3 {[%clk 0:03:00]}  h6 {[%clk 0:02:51]} 10. O-O {[%clk 0:03:00]}  Nc6 {[%clk 0:02:51]} 11. a4 {[%clk 0:02:56]}  Rc8 {[%clk 0:02:48]} 12. h4 {[%clk 0:02:49]}  Na5 {[%clk 0:02:46]} 13. Bd2 {[%clk 0:02:42]}  Be7 {[%clk 0:02:42]} 14. h5 {[%clk 0:02:40]}  Qc7 {[%clk 0:02:40]} 15. Bb1 {[%clk 0:02:36]}  Nc4 {[%clk 0:02:34]} 16. Bc1 {[%clk 0:02:33]}  Bd5 {[%clk 0:02:27]} 17. Nd2 {[%clk 0:02:30]}  Nxd2 {[%clk 0:02:23]} 18. Bxd2 {[%clk 0:02:29]}  f5 {[%clk 0:01:55]} 19. exf6 {[%clk 0:02:27]}  Bxf6 {[%clk 0:01:55]} 20. Bg6+ {[%clk 0:02:23]}  Ke7 {[%clk 0:01:55]} 21. Rc1 {[%clk 0:02:04]}  Qc4 {[%clk 0:01:50]} 22. Bf4 {[%clk 0:01:50]}  Rc6 {[%clk 0:01:46]} 23. Bd3 {[%clk 0:01:47]}  Qb3 {[%clk 0:01:45]} 24. c4 {[%clk 0:01:32]}  Qxd1 {[%clk 0:01:03]} 25. Rfxd1 {[%clk 0:01:33]}  Bxd4 {[%clk 0:00:57]} 26. cxd5 {[%clk 0:01:32]}  Rxc1 {[%clk 0:00:55]} 27. d6+ {[%clk 0:01:30]}  Kf6 {[%clk 0:00:53]} 28. Rxc1 {[%clk 0:01:31]}  Bc5 {[%clk 0:00:49]} 29. a5 {[%clk 0:01:23]}  e5 {[%clk 0:00:47]} 30. axb6 {[%clk 0:01:19]}  axb6 {[%clk 0:00:42]} 31. Be3 {[%clk 0:01:20]}  Bxe3 {[%clk 0:00:28]} 32. fxe3 {[%clk 0:01:20]}  Ke6 {[%clk 0:00:28]} 33. Bb5 {[%clk 0:01:13]}  Ra8 {[%clk 0:00:20]} 34. Rd1 {[%clk 0:01:10]}  Rc8 {[%clk 0:00:19]} 35. Be2 {[%clk 0:01:04]}  Kf5 {[%clk 0:00:12]} 36. Bb5 {[%clk 0:00:43]}  Ke6 {[%clk 0:00:11]} 37. e4 {[%clk 0:00:39]}  Rc2 {[%clk 0:00:10]} 38. Kf1 {[%clk 0:00:33]}  Rc5 {[%clk 0:00:08]} 39. Be2 {[%clk 0:00:33]}  Kf6 {[%clk 0:00:07]} 40. Bg4 {[%clk 0:00:32]}  Kg5 {[%clk 0:00:05]} 41. Bxd7 {[%clk 0:00:32]}  Kf4 {[%clk 0:00:05]} 42. Bh3 {[%clk 0:00:25]} 1-0


[Site "https://www.chess.com"]

[Event "Titled Tuesday Blitz November 01 Early 2022"]
[White "Mayaud, Raphael"]
[Black "Guz, Ari"]
[WhiteFideId "627151"]
[BlackFideId "2825759"]
[WhiteElo "2191"]
[BlackElo "2205"]
[Result "0-1"]
[Round "09"]
[TimeControl "180+1"]
[Date "2022.11.02"]
[WhiteClock "0:01:22"]
[BlackClock "0:01:50"]

1. d4 {[%clk 0:02:58]}  g6 {[%clk 0:02:55]} 2. e4 {[%clk 0:02:58]}  Bg7 {[%clk 0:02:54]} 3. Nc3 {[%clk 0:02:58]}  d6 {[%clk 0:02:54]} 4. Nf3 {[%clk 0:02:57]}  Nf6 {[%clk 0:02:54]} 5. Bc4 {[%clk 0:02:52]}  O-O {[%clk 0:02:54]} 6. Bb3 {[%clk 0:02:52]}  c5 {[%clk 0:02:51]} 7. dxc5 {[%clk 0:02:20]}  dxc5 {[%clk 0:02:52]} 8. O-O {[%clk 0:02:13]}  Nc6 {[%clk 0:02:45]} 9. Bg5 {[%clk 0:02:04]}  Bg4 {[%clk 0:02:39]} 10. h3 {[%clk 0:02:01]}  Qxd1 {[%clk 0:02:38]} 11. Rfxd1 {[%clk 0:02:01]}  Bxf3 {[%clk 0:02:39]} 12. gxf3 {[%clk 0:02:01]}  Nd4 {[%clk 0:02:39]} 13. Kg2 {[%clk 0:01:58]}  Nh5 {[%clk 0:02:33]} 14. Be3 {[%clk 0:01:51]}  Be5 {[%clk 0:02:30]} 15. Nd5 {[%clk 0:01:43]}  e6 {[%clk 0:02:20]} 16. f4 {[%clk 0:01:22]}  Bb8 {[%clk 0:01:50]} 0-1


[Site "https://www.chess.com"]

[Event "Titled Tuesday Blitz November 01 Early 2022"]
[White "Mekhitarian, Krikor Sevag"]
[Black "Besedes, Danilo"]
[WhiteFideId "2107660"]
[BlackFideId "946796"]
[WhiteElo "2614"]
[BlackElo "2352"]
[Result "1-0"]
[Round "09"]
[TimeControl "180+1"]
[Date "2022.11.02"]
[WhiteClock "0:01:23"]
[BlackClock "0:00:06"]

1. e4 {[%clk 0:02:58]}  d6 {[%clk 0:00:47]} 2. d4 {[%clk 0:02:56]}  e5 {[%clk 0:00:47]} 3. Nf3 {[%clk 0:02:55]}  Nc6 {[%clk 0:00:47]} 4. Be3 {[%clk 0:02:53]}  Bd7 {[%clk 0:00:46]} 5. Nc3 {[%clk 0:02:53]}  Nf6 {[%clk 0:00:45]} 6. h3 {[%clk 0:02:53]}  Be7 {[%clk 0:00:44]} 7. Qd2 {[%clk 0:02:54]}  exd4 {[%clk 0:00:42]} 8. Nxd4 {[%clk 0:02:54]}  Nxd4 {[%clk 0:00:37]} 9. Bxd4 {[%clk 0:02:55]}  a6 {[%clk 0:00:37]} 10. O-O-O {[%clk 0:02:53]}  Be6 {[%clk 0:00:34]} 11. Kb1 {[%clk 0:02:53]}  Qd7 {[%clk 0:00:29]} 12. f4 {[%clk 0:02:53]}  Qd8 {[%clk 0:00:25]} 13. g4 {[%clk 0:02:51]}  Bd7 {[%clk 0:00:25]} 14. Bg2 {[%clk 0:02:51]}  Bc6 {[%clk 0:00:25]} 15. Rhe1 {[%clk 0:02:52]}  O-O {[%clk 0:00:24]} 16. e5 {[%clk 0:02:52]}  dxe5 {[%clk 0:00:21]} 17. fxe5 {[%clk 0:02:42]}  Nd5 {[%clk 0:00:14]} 18. Bf2 {[%clk 0:02:18]}  Nxc3+ {[%clk 0:00:11]} 19. Qxc3 {[%clk 0:02:19]}  Qe8 {[%clk 0:00:12]} 20. Bxc6 {[%clk 0:02:13]}  Qxc6 {[%clk 0:00:12]} 21. Qxc6 {[%clk 0:02:13]}  bxc6 {[%clk 0:00:13]} 22. Rd7 {[%clk 0:02:13]}  Bd8 {[%clk 0:00:10]} 23. c4 {[%clk 0:02:01]}  Re8 {[%clk 0:00:10]} 24. Kc2 {[%clk 0:02:01]}  Rc8 {[%clk 0:00:10]} 25. Red1 {[%clk 0:01:47]}  Be7 {[%clk 0:00:09]} 26. Bd4 {[%clk 0:01:46]}  Kf8 {[%clk 0:00:09]} 27. Bc3 {[%clk 0:01:46]}  Bg5 {[%clk 0:00:09]} 28. b4 {[%clk 0:01:43]}  Bf4 {[%clk 0:00:09]} 29. Rf1 {[%clk 0:01:25]}  g5 {[%clk 0:00:09]} 30. Bd2 {[%clk 0:01:26]}  Rxe5 {[%clk 0:00:08]} 31. Bxf4 {[%clk 0:01:26]}  gxf4 {[%clk 0:00:09]} 32. Rxf4 {[%clk 0:01:26]}  Re7 {[%clk 0:00:10]} 33. Rxe7 {[%clk 0:01:27]}  Kxe7 {[%clk 0:00:10]} 34. Rf5 {[%clk 0:01:27]}  Rb8 {[%clk 0:00:10]} 35. Kc3 {[%clk 0:01:27]}  Ke6 {[%clk 0:00:10]} 36. Ra5 {[%clk 0:01:27]}  Rd8 {[%clk 0:00:08]} 37. Rxa6 {[%clk 0:01:27]}  Kd7 {[%clk 0:00:08]} 38. Ra5 {[%clk 0:01:28]}  Re8 {[%clk 0:00:08]} 39. Rh5 {[%clk 0:01:24]}  Re3+ {[%clk 0:00:08]} 40. Kd4 {[%clk 0:01:24]}  Ra3 {[%clk 0:00:08]} 41. Rxh7 {[%clk 0:01:24]}  Ke7 {[%clk 0:00:08]} 42. Kc5 {[%clk 0:01:23]}  Rxa2 {[%clk 0:00:07]} 43. g5 {[%clk 0:01:24]}  Ra6 {[%clk 0:00:06]} 44. g6 {[%clk 0:01:23]} 1-0


[Site "https://www.chess.com"]

[Event "Titled Tuesday Blitz November 01 Early 2022"]
[White "Migot, Tangi"]
[Black "Buscar, Michael"]
[WhiteFideId "662445"]
[BlackFideId "2603616"]
[WhiteElo "2586"]
[BlackElo "2010"]
[Result "1-0"]
[Round "09"]
[TimeControl "180+1"]
[Date "2022.11.02"]
[WhiteClock "0:01:38"]
[BlackClock "0:00:17"]

1. f4 {[%clk 0:03:00]}  g6 {[%clk 0:02:55]} 2. d4 {[%clk 0:02:59]}  d5 {[%clk 0:02:51]} 3. c3 {[%clk 0:02:59]}  Bg7 {[%clk 0:02:50]} 4. Nf3 {[%clk 0:02:59]}  Nh6 {[%clk 0:02:50]} 5. Be3 {[%clk 0:02:58]}  Nf5 {[%clk 0:02:50]} 6. Bf2 {[%clk 0:02:59]}  h5 {[%clk 0:02:50]} 7. Nbd2 {[%clk 0:02:57]}  Nd7 {[%clk 0:02:49]} 8. e4 {[%clk 0:02:57]}  dxe4 {[%clk 0:02:47]} 9. Nxe4 {[%clk 0:02:58]}  b6 {[%clk 0:02:43]} 10. Bd3 {[%clk 0:02:58]}  Bb7 {[%clk 0:02:43]} 11. Qe2 {[%clk 0:02:58]}  Nf6 {[%clk 0:02:35]} 12. O-O-O {[%clk 0:02:52]}  Qd5 {[%clk 0:02:20]} 13. Nxf6+ {[%clk 0:02:49]}  Bxf6 {[%clk 0:02:20]} 14. Kb1 {[%clk 0:02:49]}  O-O-O {[%clk 0:02:03]} 15. Rhe1 {[%clk 0:02:48]}  e6 {[%clk 0:01:46]} 16. Bc4 {[%clk 0:02:43]}  Qa5 {[%clk 0:01:42]} 17. g3 {[%clk 0:02:41]}  Kb8 {[%clk 0:01:38]} 18. Ne5 {[%clk 0:02:40]}  Rhf8 {[%clk 0:01:34]} 19. h3 {[%clk 0:02:23]}  Nd6 {[%clk 0:01:29]} 20. Bd3 {[%clk 0:02:17]}  Bd5 {[%clk 0:01:15]} 21. c4 {[%clk 0:02:10]}  Bb7 {[%clk 0:01:13]} 22. Rc1 {[%clk 0:02:05]}  Nf5 {[%clk 0:01:07]} 23. d5 {[%clk 0:01:47]}  exd5 {[%clk 0:00:48]} 24. c5 {[%clk 0:01:48]}  Bxe5 {[%clk 0:00:20]} 25. Qxe5 {[%clk 0:01:46]}  Rfe8 {[%clk 0:00:18]} 26. Qf6 {[%clk 0:01:39]}  Rxe1 {[%clk 0:00:17]} 27. Qxd8+ {[%clk 0:01:38]} 1-0


[Site "https://www.chess.com"]

[Event "Titled Tuesday Blitz November 01 Early 2022"]
[White "Mitrovic, Darko R"]
[Black "Omariev, Maksim"]
[WhiteFideId "927023"]
[BlackFideId "4193423"]
[WhiteElo "2150"]
[BlackElo "2399"]
[Result "0-1"]
[Round "09"]
[TimeControl "180+1"]
[Date "2022.11.02"]
[WhiteClock "0:00:08"]
[BlackClock "0:00:27"]

1. d4 {[%clk 0:03:00]}  h5 {[%clk 0:01:58]} 2. h4 {[%clk 0:01:00]}  a5 {[%clk 0:01:55]} 3. a4 {[%clk 0:01:00]}  d5 {[%clk 0:01:55]} 4. g3 {[%clk 0:00:59]}  Nf6 {[%clk 0:01:56]} 5. Nf3 {[%clk 0:00:59]}  Bf5 {[%clk 0:01:56]} 6. Bg2 {[%clk 0:00:59]}  e6 {[%clk 0:01:56]} 7. Bf4 {[%clk 0:00:58]}  Be7 {[%clk 0:01:56]} 8. O-O {[%clk 0:00:58]}  Ne4 {[%clk 0:01:20]} 9. Nbd2 {[%clk 0:00:56]}  g5 {[%clk 0:01:21]} 10. Nxg5 {[%clk 0:00:51]}  Nxg5 {[%clk 0:01:21]} 11. hxg5 {[%clk 0:00:46]}  Bxg5 {[%clk 0:01:22]} 12. Bxg5 {[%clk 0:00:46]}  Qxg5 {[%clk 0:01:23]} 13. Nf3 {[%clk 0:00:46]}  Qg7 {[%clk 0:01:09]} 14. Nh4 {[%clk 0:00:43]}  Be4 {[%clk 0:00:56]} 15. Bxe4 {[%clk 0:00:35]}  dxe4 {[%clk 0:00:57]} 16. e3 {[%clk 0:00:32]}  Nd7 {[%clk 0:00:51]} 17. Qe2 {[%clk 0:00:21]}  Rg8 {[%clk 0:00:28]} 18. c3 {[%clk 0:00:18]}  Qg5 {[%clk 0:00:25]} 19. Kh2 {[%clk 0:00:18]}  O-O-O {[%clk 0:00:23]} 20. b4 {[%clk 0:00:16]}  Nf6 {[%clk 0:00:23]} 21. bxa5 {[%clk 0:00:15]}  Ng4+ {[%clk 0:00:23]} 22. Kh3 {[%clk 0:00:15]}  Qxa5 {[%clk 0:00:21]} 23. Rab1 {[%clk 0:00:14]}  Rg5 {[%clk 0:00:19]} 24. Rb4 {[%clk 0:00:12]}  Rdg8 {[%clk 0:00:18]} 25. Rfb1 {[%clk 0:00:12]}  b6 {[%clk 0:00:18]} 26. Rb5 {[%clk 0:00:11]}  Qxa4 {[%clk 0:00:18]} 27. Rxg5 {[%clk 0:00:10]}  Rxg5 {[%clk 0:00:19]} 28. Qb2 {[%clk 0:00:09]}  Ra5 {[%clk 0:00:10]} 29. Qb4 {[%clk 0:00:08]}  Qxb4 {[%clk 0:00:08]} 30. cxb4 {[%clk 0:00:08]}  Nxf2+ {[%clk 0:00:07]} 31. Kg2 {[%clk 0:00:06]}  Ra2 {[%clk 0:00:08]} 32. Rf1 {[%clk 0:00:05]}  Ng4+ {[%clk 0:00:08]} 33. Kg1 {[%clk 0:00:04]}  f5 {[%clk 0:00:09]} 34. Ng2 {[%clk 0:00:03]}  Rxg2+ {[%clk 0:00:08]} 35. Kxg2 {[%clk 0:00:02]}  Nxe3+ {[%clk 0:00:09]} 36. Kf2 {[%clk 0:00:03]}  Nxf1 {[%clk 0:00:09]} 37. Kxf1 {[%clk 0:00:04]}  Kb7 {[%clk 0:00:10]} 38. Ke2 {[%clk 0:00:04]}  Kc6 {[%clk 0:00:11]} 39. Ke3 {[%clk 0:00:04]}  Kd5 {[%clk 0:00:11]} 40. b5 {[%clk 0:00:03]}  Kc4 {[%clk 0:00:12]} 41. Kf4 {[%clk 0:00:04]}  Kxd4 {[%clk 0:00:12]} 42. Kg5 {[%clk 0:00:03]}  e3 {[%clk 0:00:12]} 43. Kxh5 {[%clk 0:00:03]}  e2 {[%clk 0:00:13]} 44. Kg5 {[%clk 0:00:04]}  e1=Q {[%clk 0:00:14]} 45. Kf6 {[%clk 0:00:04]}  Qxg3 {[%clk 0:00:14]} 46. Kxe6 {[%clk 0:00:04]}  Qd6+ {[%clk 0:00:15]} 47. Kxf5 {[%clk 0:00:04]}  Kc5 {[%clk 0:00:16]} 48. Ke4 {[%clk 0:00:03]}  Kxb5 {[%clk 0:00:17]} 49. Ke3 {[%clk 0:00:03]}  c5 {[%clk 0:00:18]} 50. Ke4 {[%clk 0:00:03]}  Kc6 {[%clk 0:00:19]} 51. Ke3 {[%clk 0:00:04]}  b5 {[%clk 0:00:20]} 52. Ke4 {[%clk 0:00:04]}  b4 {[%clk 0:00:21]} 53. Ke3 {[%clk 0:00:05]}  Kb5 {[%clk 0:00:22]} 54. Ke4 {[%clk 0:00:05]}  c4 {[%clk 0:00:22]} 55. Ke3 {[%clk 0:00:06]}  Qc5+ {[%clk 0:00:23]} 56. Ke4 {[%clk 0:00:07]}  b3 {[%clk 0:00:24]} 57. Kf3 {[%clk 0:00:07]}  Kb4 {[%clk 0:00:25]} 58. Ke4 {[%clk 0:00:07]}  c3 {[%clk 0:00:26]} 59. Kf3 {[%clk 0:00:08]}  b2 {[%clk 0:00:27]} 60. Ke4 {[%clk 0:00:09]}  Kb3 {[%clk 0:00:28]} 61. Kd3 {[%clk 0:00:09]}  c2 {[%clk 0:00:27]} 62. Ke4 {[%clk 0:00:09]}  c1=Q {[%clk 0:00:27]} 63. Kf3 {[%clk 0:00:09]}  b1=Q {[%clk 0:00:27]} 64. Kg4 {[%clk 0:00:09]}  Qe4+ {[%clk 0:00:27]} 65. Kg3 {[%clk 0:00:08]}  Q1e3+ {[%clk 0:00:27]} 66. Kh2 {[%clk 0:00:08]}  Qh5# {[%clk 0:00:27]} 0-1


[Site "https://www.chess.com"]

[Event "Titled Tuesday Blitz November 01 Early 2022"]
[White "Myshakov, Fyodor"]
[Black "Vifleemskaia, Svetlana"]
[WhiteFideId "14111284"]
[BlackFideId "4129490"]
[WhiteElo "2310"]
[BlackElo "1929"]
[Result "1-0"]
[Round "09"]
[TimeControl "180+1"]
[Date "2022.11.02"]
[WhiteClock "0:02:15"]
[BlackClock "0:01:05"]

1. c4 {[%clk 0:02:57]}  c5 {[%clk 0:02:37]} 2. Nc3 {[%clk 0:02:55]}  Nf6 {[%clk 0:02:37]} 3. Nf3 {[%clk 0:02:55]}  d5 {[%clk 0:02:37]} 4. cxd5 {[%clk 0:02:55]}  Nxd5 {[%clk 0:02:38]} 5. Nxd5 {[%clk 0:02:54]}  Qxd5 {[%clk 0:02:37]} 6. g3 {[%clk 0:02:55]}  Nc6 {[%clk 0:02:37]} 7. Bg2 {[%clk 0:02:54]}  e5 {[%clk 0:02:37]} 8. d3 {[%clk 0:02:52]}  Be7 {[%clk 0:02:36]} 9. O-O {[%clk 0:02:53]}  O-O {[%clk 0:02:30]} 10. Be3 {[%clk 0:02:52]}  Qd6 {[%clk 0:02:19]} 11. Rc1 {[%clk 0:02:51]}  Nd4 {[%clk 0:02:19]} 12. a3 {[%clk 0:02:41]}  Rb8 {[%clk 0:02:18]} 13. Nxd4 {[%clk 0:02:38]}  cxd4 {[%clk 0:02:15]} 14. Bd2 {[%clk 0:02:38]}  Be6 {[%clk 0:02:10]} 15. Bb4 {[%clk 0:02:37]}  Qd7 {[%clk 0:02:08]} 16. Bxe7 {[%clk 0:02:37]}  Qxe7 {[%clk 0:02:09]} 17. Qa4 {[%clk 0:02:36]}  a6 {[%clk 0:01:56]} 18. Rc2 {[%clk 0:02:31]}  Qd6 {[%clk 0:01:52]} 19. Rfc1 {[%clk 0:02:28]}  g6 {[%clk 0:01:46]} 20. h4 {[%clk 0:02:24]}  h5 {[%clk 0:01:20]} 21. Rc7 {[%clk 0:02:20]}  Rfc8 {[%clk 0:01:14]} 22. Rxc8+ {[%clk 0:02:18]}  Rxc8 {[%clk 0:01:05]} 23. Rxc8+ {[%clk 0:02:17]}  Bxc8 {[%clk 0:01:05]} 24. Qe8+ {[%clk 0:02:18]}  Qf8 {[%clk 0:01:05]} 25. Qxe5 {[%clk 0:02:17]}  Qc5 {[%clk 0:01:05]} 26. Qxc5 {[%clk 0:02:15]} 1-0


[Site "https://www.chess.com"]

[Event "Titled Tuesday Blitz November 01 Early 2022"]
[White "Namitbir Singh Walia"]
[Black "Toshali, V"]
[WhiteFideId "35071068"]
[BlackFideId "5072611"]
[WhiteElo "2239"]
[BlackElo "1973"]
[Result "1-0"]
[Round "09"]
[TimeControl "180+1"]
[Date "2022.11.02"]
[WhiteClock "0:00:11"]
[BlackClock "0:01:23"]

1. d4 {[%clk 0:02:58]}  d5 {[%clk 0:02:59]} 2. c4 {[%clk 0:02:56]}  c6 {[%clk 0:02:58]} 3. Nf3 {[%clk 0:02:56]}  Nf6 {[%clk 0:02:57]} 4. g3 {[%clk 0:02:55]}  Bg4 {[%clk 0:02:54]} 5. Bg2 {[%clk 0:02:51]}  Nbd7 {[%clk 0:02:52]} 6. O-O {[%clk 0:02:41]}  e6 {[%clk 0:02:51]} 7. Qc2 {[%clk 0:02:40]}  Bf5 {[%clk 0:02:49]} 8. Qb3 {[%clk 0:02:35]}  Qb6 {[%clk 0:02:48]} 9. c5 {[%clk 0:02:29]}  Qa6 {[%clk 0:02:48]} 10. Nc3 {[%clk 0:02:25]}  Be7 {[%clk 0:02:46]} 11. Re1 {[%clk 0:02:24]}  O-O {[%clk 0:02:45]} 12. Bd2 {[%clk 0:02:19]}  b6 {[%clk 0:02:44]} 13. cxb6 {[%clk 0:02:08]}  Nxb6 {[%clk 0:02:44]} 14. Ne5 {[%clk 0:01:54]}  c5 {[%clk 0:02:44]} 15. dxc5 {[%clk 0:01:28]}  Bxc5 {[%clk 0:02:42]} 16. e4 {[%clk 0:01:27]}  dxe4 {[%clk 0:02:42]} 17. Nxe4 {[%clk 0:01:28]}  Nxe4 {[%clk 0:02:41]} 18. Bxe4 {[%clk 0:01:28]}  Bxe4 {[%clk 0:02:42]} 19. Rxe4 {[%clk 0:01:29]}  Rfd8 {[%clk 0:02:35]} 20. Bg5 {[%clk 0:01:06]}  Rd5 {[%clk 0:02:29]} 21. Be3 {[%clk 0:00:58]}  Bxe3 {[%clk 0:02:16]} 22. Rxe3 {[%clk 0:00:59]}  Rad8 {[%clk 0:02:14]} 23. Rae1 {[%clk 0:00:59]}  Na4 {[%clk 0:02:08]} 24. Rf3 {[%clk 0:00:37]}  Nc5 {[%clk 0:02:05]} 25. Qc2 {[%clk 0:00:31]}  f6 {[%clk 0:02:01]} 26. Ng4 {[%clk 0:00:29]}  Nd3 {[%clk 0:01:59]} 27. Rd1 {[%clk 0:00:23]}  Nb4 {[%clk 0:01:56]} 28. Rxd5 {[%clk 0:00:23]}  exd5 {[%clk 0:01:52]} 29. Qf5 {[%clk 0:00:20]}  d4 {[%clk 0:01:50]} 30. a3 {[%clk 0:00:17]}  Nc6 {[%clk 0:01:43]} 31. Qe6+ {[%clk 0:00:16]}  Kh8 {[%clk 0:01:42]} 32. Rxf6 {[%clk 0:00:17]}  d3 {[%clk 0:01:27]} 33. Nh6 {[%clk 0:00:12]}  gxh6 {[%clk 0:01:23]} 34. Rf7 {[%clk 0:00:11]} 1-0


[Site "https://www.chess.com"]

[Event "Titled Tuesday Blitz November 01 Early 2022"]
[White "Navara, David"]
[Black "Molina, Roberto Junio Brito"]
[WhiteFideId "309095"]
[BlackFideId "2109450"]
[WhiteElo "2676"]
[BlackElo "2388"]
[Result "1-0"]
[Round "09"]
[TimeControl "180+1"]
[Date "2022.11.01"]
[WhiteClock "0:01:15"]
[BlackClock "0:01:24"]

1. d4 {[%clk 0:03:00]}  d5 {[%clk 0:02:59]} 2. c4 {[%clk 0:03:01]}  c6 {[%clk 0:02:59]} 3. Nf3 {[%clk 0:03:01]}  Nf6 {[%clk 0:03:00]} 4. e3 {[%clk 0:03:01]}  Bf5 {[%clk 0:02:59]} 5. Nc3 {[%clk 0:03:01]}  e6 {[%clk 0:02:59]} 6. Nh4 {[%clk 0:02:55]}  Bg6 {[%clk 0:03:00]} 7. Be2 {[%clk 0:02:52]}  Nbd7 {[%clk 0:02:59]} 8. O-O {[%clk 0:02:50]}  Bd6 {[%clk 0:02:58]} 9. g3 {[%clk 0:02:51]}  Ne4 {[%clk 0:02:52]} 10. cxd5 {[%clk 0:02:10]}  exd5 {[%clk 0:02:44]} 11. Nxe4 {[%clk 0:01:58]}  Bxe4 {[%clk 0:02:43]} 12. f3 {[%clk 0:01:58]}  Bg6 {[%clk 0:02:41]} 13. e4 {[%clk 0:01:51]}  dxe4 {[%clk 0:02:33]} 14. Nxg6 {[%clk 0:01:51]}  hxg6 {[%clk 0:02:32]} 15. fxe4 {[%clk 0:01:52]}  O-O {[%clk 0:02:31]} 16. Bc4 {[%clk 0:01:40]}  Nb6 {[%clk 0:02:30]} 17. Bb3 {[%clk 0:01:40]}  c5 {[%clk 0:02:16]} 18. dxc5 {[%clk 0:01:33]}  Bxc5+ {[%clk 0:02:16]} 19. Kg2 {[%clk 0:01:34]}  Qxd1 {[%clk 0:02:14]} 20. Rxd1 {[%clk 0:01:34]}  Rfd8 {[%clk 0:02:13]} 21. Bg5 {[%clk 0:01:28]}  Rxd1 {[%clk 0:02:11]} 22. Rxd1 {[%clk 0:01:29]}  Kf8 {[%clk 0:02:11]} 23. Rf1 {[%clk 0:01:20]}  f6 {[%clk 0:02:06]} 24. e5 {[%clk 0:01:21]}  Nd7 {[%clk 0:01:36]} 25. exf6 {[%clk 0:01:20]}  Nxf6 {[%clk 0:01:35]} 26. Bxf6 {[%clk 0:01:21]}  gxf6 {[%clk 0:01:36]} 27. Rxf6+ {[%clk 0:01:22]}  Kg7 {[%clk 0:01:37]} 28. Rf7+ {[%clk 0:01:22]}  Kh6 {[%clk 0:01:37]} 29. Rxb7 {[%clk 0:01:19]}  Rd8 {[%clk 0:01:31]} 30. h4 {[%clk 0:01:15]}  Rd2+ {[%clk 0:01:29]} 31. Kh3 {[%clk 0:01:15]}  Rxb2 {[%clk 0:01:29]} 32. g4 {[%clk 0:01:14]}  g5 {[%clk 0:01:24]} 33. hxg5+ {[%clk 0:01:15]}  Kxg5 {[%clk 0:01:24]} 34. Rb5 {[%clk 0:01:15]} 1-0


[Site "https://www.chess.com"]

[Event "Titled Tuesday Blitz November 01 Early 2022"]
[White "Nozdrachev, Leonid"]
[Black "Kanyamarala, Tarun"]
[WhiteFideId "24113433"]
[BlackFideId "45004714"]
[WhiteElo "2249"]
[BlackElo "2307"]
[Result "1-0"]
[Round "09"]
[TimeControl "180+1"]
[Date "2022.11.02"]
[WhiteClock "0:01:33"]
[BlackClock "0:01:35"]

1. e4 {[%clk 0:03:00]}  c5 {[%clk 0:02:59]} 2. Nf3 {[%clk 0:02:59]}  e6 {[%clk 0:03:00]} 3. d4 {[%clk 0:02:58]}  cxd4 {[%clk 0:03:00]} 4. Nxd4 {[%clk 0:02:59]}  a6 {[%clk 0:03:01]} 5. c4 {[%clk 0:02:57]}  Nf6 {[%clk 0:03:00]} 6. Nc3 {[%clk 0:02:53]}  Qc7 {[%clk 0:03:01]} 7. Bd3 {[%clk 0:02:52]}  Nc6 {[%clk 0:02:56]} 8. Nc2 {[%clk 0:02:51]}  Ne5 {[%clk 0:02:51]} 9. O-O {[%clk 0:02:43]}  Nxc4 {[%clk 0:02:50]} 10. Bxc4 {[%clk 0:02:39]}  Qxc4 {[%clk 0:02:49]} 11. e5 {[%clk 0:02:40]}  Ng8 {[%clk 0:02:44]} 12. Bg5 {[%clk 0:02:12]}  f6 {[%clk 0:02:39]} 13. Ne3 {[%clk 0:02:11]}  Qc6 {[%clk 0:02:36]} 14. exf6 {[%clk 0:02:09]}  Nxf6 {[%clk 0:02:35]} 15. Bxf6 {[%clk 0:02:08]}  gxf6 {[%clk 0:02:35]} 16. Qh5+ {[%clk 0:02:08]}  Kd8 {[%clk 0:02:34]} 17. Rac1 {[%clk 0:02:08]}  Qb6 {[%clk 0:02:26]} 18. Qf7 {[%clk 0:01:49]}  Be7 {[%clk 0:02:26]} 19. Qxe7+ {[%clk 0:01:45]}  Kxe7 {[%clk 0:02:25]} 20. Ncd5+ {[%clk 0:01:46]}  exd5 {[%clk 0:02:19]} 21. Nxd5+ {[%clk 0:01:47]}  Kf7 {[%clk 0:02:19]} 22. Nxb6 {[%clk 0:01:48]}  Rb8 {[%clk 0:02:19]} 23. Rfd1 {[%clk 0:01:44]}  Ke7 {[%clk 0:02:14]} 24. Rc7 {[%clk 0:01:41]}  Kd8 {[%clk 0:02:07]} 25. Rdc1 {[%clk 0:01:40]}  Ke7 {[%clk 0:02:03]} 26. Rxc8 {[%clk 0:01:41]}  Rhxc8 {[%clk 0:02:01]} 27. Rxc8 {[%clk 0:01:42]}  Rxc8 {[%clk 0:01:59]} 28. Nxc8+ {[%clk 0:01:42]}  Ke6 {[%clk 0:01:55]} 29. Kf1 {[%clk 0:01:41]}  d5 {[%clk 0:01:52]} 30. Ke2 {[%clk 0:01:41]}  Kd7 {[%clk 0:01:50]} 31. Nb6+ {[%clk 0:01:40]}  Kc6 {[%clk 0:01:51]} 32. Nxd5 {[%clk 0:01:39]}  Kxd5 {[%clk 0:01:50]} 33. Ke3 {[%clk 0:01:40]}  b5 {[%clk 0:01:49]} 34. g4 {[%clk 0:01:39]}  a5 {[%clk 0:01:48]} 35. f4 {[%clk 0:01:39]}  h6 {[%clk 0:01:47]} 36. h4 {[%clk 0:01:38]}  a4 {[%clk 0:01:46]} 37. g5 {[%clk 0:01:37]}  fxg5 {[%clk 0:01:46]} 38. fxg5 {[%clk 0:01:38]}  h5 {[%clk 0:01:36]} 39. a3 {[%clk 0:01:34]}  Ke5 {[%clk 0:01:34]} 40. Kd3 {[%clk 0:01:34]}  Kf5 {[%clk 0:01:33]} 41. Kd4 {[%clk 0:01:34]}  Kg4 {[%clk 0:01:33]} 42. g6 {[%clk 0:01:33]}  Kxh4 {[%clk 0:01:34]} 43. g7 {[%clk 0:01:34]}  Kh3 {[%clk 0:01:34]} 44. g8=Q {[%clk 0:01:32]}  h4 {[%clk 0:01:35]} 45. Ke3 {[%clk 0:01:32]}  b4 {[%clk 0:01:35]} 46. Kf2 {[%clk 0:01:33]} 1-0


[Site "https://www.chess.com"]